[Event "WYCC 2018 G14"]
[Site "Halkidiki"]
[Date "2018.10.23"]
[Round "5"]
[White "Nurgali, Nazerke"]
[Black "Mehmed, Elif"]
[Result "1-0"]
[ECO "D52"]
[WhiteElo "2263"]
[BlackElo "2049"]
[Annotator "NA"]
[PlyCount "75"]
[EventDate "2018.10.20"]
[EventType "swiss"]
[EventCountry "GRE"]
[SourceTitle "playchess.com"]
[Source "ChessBase"]
[SourceQuality "1"]
[TimeControl "40/5400+30:1800+30"]

1. d4 d5 2. Nf3 Nf6 3. c4 c6 4. Nc3 e6 5. Bg5 Nbd7 6. e3 Qa5 7. Nd2 Bb4 8. Qc2 O-O 9. Be2 c5 10. O-O cxd4 11. Nb3 Qd8 12. Nxd4 dxc4 13. Bxc4 Qa5 14. Bh4 Bxc3 15. bxc3 Nd5 16. Rac1 Qc5 17. Bd3 h6 $14 18. Bg3 a6 19. e4 N5b6 20. Nb3 Qc6 21. Qe2 Nc5 22. Bb1 Nca4 23. c4 Nd7 24. e5 Nac5 25. Rfd1 b6 26. Rd6 Qc7 27. Qc2 g6 28. Qd2 Kh7 29. Qf4 Bb7 30. Qh4 Qd8 31. Qd4 Qc7 32. Rd1 Rac8 33. Qh4 Kg7 34. Bf4 Rh8 35. Nxc5 Nxc5 36. Qf6+ Kg8 37. Rd8+ Kh7 38. Qxh8# 1-0

[Event "WYCC 2018 G14"]
[Site "Halkidiki"]
[Date "2018.10.23"]
[Round "5"]
[White "Caglar, Sila"]
[Black "Ziegenfuss, Antonia"]
[Result "1/2-1/2"]
[ECO "B40"]
[WhiteElo "2184"]
[BlackElo "1969"]
[Annotator "NA"]
[PlyCount "59"]
[EventDate "2018.10.20"]
[EventType "swiss"]
[EventCountry "GRE"]
[SourceTitle "playchess.com"]
[Source "ChessBase"]
[SourceQuality "1"]
[TimeControl "40/5400+30:1800+30"]

1. e4 {[%emt 0:00:00]} c5 {[%emt 0:00:00]} 2. Nf3 {[%emt 0:00:00]} e6 {[%emt 0:00:00]} 3. g3 {[%emt 0:00:00]} Nc6 {[%emt 0:00:00]} 4. Bg2 {[%emt 0:00:00]} Nf6 $11 {[%emt 0:00:10] LiveBook: 1010 Games} 5. Qe2 {[%emt 0:00:27]} Be7 {[%emt 0:01:44]} 6. O-O {[%emt 0:00:47]} d5 {[%emt 0:02:06]} 7. e5 {[%emt 0:06:51]} Nd7 {[%emt 0:01:15]} 8. c3 {[%emt 0:05:34]} b6 {[%emt 0:04:02]} 9. d3 {[%emt 0:11:09]} Bb7 {[%emt 0:03:13]} 10. Re1 {[%emt 0:03:19]} g5 {[%emt 0:08:25]} 11. h3 {[%emt 0:09:43]} h5 {[%emt 0:03:18]} 12. Nbd2 {[%emt 0:08:42]} Qc7 {[%emt 0:15:37]} 13. g4 {[%emt 0:11:48]} hxg4 {[%emt 0:08:20]} 14. hxg4 {[%emt 0:00:07]} O-O-O {[%emt 0:01:00]} 15. Nf1 {[%emt 0:07:19]} Rdg8 {[%emt 0:10:17]} 16. a3 {[%emt 0:04:35]} Nf8 {[%emt 0:08:29]} 17. d4 {[%emt 0:01:23]} f5 {[%emt 0:07:58]} 18. exf6 {[%emt 0:03:44]} Bxf6 {[%emt 0:00:53]} 19. dxc5 {[%emt 0:02:39]} bxc5 {[%emt 0:00:17]} 20. Ng3 {[%emt 0:04:30]} e5 {[%emt 0:04:01]} 21. Nh5 {[%emt 0:02:16]} Nd7 {[%emt 0:12:40]} 22. Nh2 {[%emt 0:01:21]} e4 {[%emt 0:01:21]} 23. f3 {[%emt 0:05:20]} Be5 {[%emt 0:01:48]} 24. Nf1 {[%emt 0:00:14]} exf3 {[%emt 0:00:32]} 25. Qxf3 {[%emt 0:00:56]} d4 {[%emt 0:00:54]} 26. cxd4 {[%emt 0:03:34]} Bxd4+ {[%emt 0:00:46]} 27. Be3 {[%emt 0:00:33]} Rf8 {[%emt 0:00:48]} 28. Qe2 {[%emt 0:03:41]} Bxe3+ {[%emt 0:00:28]} 29. Qxe3 {[%emt 0:00:12]} Nce5 {[%emt 0:00:16]} 30. Nh2 {[%emt 0:03:19]} 1/2-1/2

[Event "WYCC 2018 G14"]
[Site "Halkidiki"]
[Date "2018.10.23"]
[Round "5"]
[White "Song, Yuxin"]
[Black "Ning, Kaiyu"]
[Result "0-1"]
[ECO "B01"]
[WhiteElo "2178"]
[BlackElo "2217"]
[Annotator "NA"]
[PlyCount "70"]
[EventDate "2018.10.20"]
[EventType "swiss"]
[EventCountry "GRE"]
[SourceTitle "playchess.com"]
[Source "ChessBase"]
[SourceQuality "1"]
[TimeControl "40/5400+30:1800+30"]

1. e4 {[%emt 0:00:00]} d5 {[%emt 0:00:07]} 2. exd5 {[%emt 0:00:00]} Qxd5 {[%emt 0:00:03]} 3. Nc3 {[%emt 0:00:00]} Qa5 {[%emt 0:00:03]} 4. d4 {[%emt 0:00:04]} c6 {[%emt 0:00:06]} 5. Bc4 {[%emt 0:00:07]} Bf5 {[%emt 0:00:15]} 6. Bd2 {[%emt 0:00:16]} Nf6 {[%emt 0:00:16]} 7. Nf3 {[%emt 0:00:49]} e6 {[%emt 0:01:17]} 8. O-O {[%emt 0:07:24]} Qc7 {[%emt 0:00:04]} 9. h3 {[%emt 0:03:41]} h6 {[%emt 0:00:17] B01: Skandinavische Verteidigung} (9... Nbd7 10. Qe2 Bd6 11. Nh4 Bg6 12. Nxg6 hxg6 13. Rab1 Nb6 14. Bd3 Bh2+ 15. Kh1 Bf4 16. Bxf4 Qxf4 17. Qe5 {0-1 (25) Sean,W (2385)-Sarkar,J (2429) Budapest 2014}) 10. Ne5 {[%emt 0:06:19]} Nbd7 {[%emt 0:01:56]} 11. f4 $146 {[%emt 0:04:13]} ({Vorgänger:} 11. Re1 Be7 12. Bf4 Nxe5 13. dxe5 Nd7 14. Qe2 O-O 15. a3 Nb6 16. Bb3 Rad8 17. Rad1 Rxd1 18. Rxd1 {0-1 (43) Guseinov,V-Ismailov,I Baku 2000}) 11... Qb6 {[%emt 0:09:55]} 12. Ne2 {[%emt 0:13:42]} Nxe5 {[%emt 0:30:57]} 13. fxe5 {[%emt 0:00:08]} Ne4 {[%emt 0:04:22]} 14. Bc1 {[%emt 0:07:28]} O-O-O {[%emt 0:04:58]} 15. c3 {[%emt 0:00:25]} Nc5 {[%emt 0:05:55]} ({Better is} 15... g5 $14) 16. Ng3 {[%emt 0:06:15]} Bg6 {[%emt 0:01:40]} 17. h4 {[%emt 0:02:32]} Rd7 {[%emt 0:14:27]} 18. h5 {[%emt 0:00:30]} Bh7 {[%emt 0:00:06]} 19. Kh1 {[%emt 0:07:35]} Qd8 {[%emt 0:02:08]} 20. Rf4 {[%emt 0:07:06]} g5 {[%emt 0:01:24]} 21. Rf1 $14 {[%emt 0:04:02]} Ne4 {[%emt 0:01:27]} 22. Nxe4 {[%emt 0:00:32]} Bxe4 {[%emt 0:00:05]} 23. Qe2 {[%emt 0:00:02]} Bd5 {[%emt 0:04:01]} 24. Bd3 {[%emt 0:02:09]} g4 {[%emt 0:04:43]} 25. Qxg4 {[%emt 0:00:48]} Bc5 {[%emt 0:00:59]} 26. Be4 {[%emt 0:03:23]} Rg8 {[%emt 0:00:03]} 27. Qf4 {[%emt 0:00:01]} Rg5 {[%emt 0:00:46]} 28. Bxd5 {[%emt 0:00:54]} Rf5 {[%emt 0:00:05]} 29. Qxf5 {[%emt 0:08:12]} exf5 {[%emt 0:00:03]} 30. Bb3 {[%emt 0:00:07]} Rxd4 {[%emt 0:02:14]} 31. g3 {[%emt 0:03:31]} Rh4+ {[%emt 0:03:23]} 32. Kg2 {[%emt 0:00:00]} Qd3 {[%emt 0:00:09]} 33. Re1 {[%emt 0:01:27]} Bf2 {[%emt 0:01:10]} 34. Bf4 {[%emt 0:05:10]} Bxg3 {[%emt 0:02:23]} 35. Bxg3 {[%emt 0:03:21]} Rg4 {[%emt 0:00:02]} 0-1

[Event "WYCC 2018 G14"]
[Site "Halkidiki"]
[Date "2018.10.23"]
[Round "5"]
[White "Allahverdiyeva, Ayan"]
[Black "Velea, Anne-Marie"]
[Result "1-0"]
[ECO "B76"]
[WhiteElo "2116"]
[BlackElo "1859"]
[Annotator "NA"]
[PlyCount "73"]
[EventDate "2018.10.20"]
[EventType "swiss"]
[EventCountry "GRE"]
[SourceTitle "playchess.com"]
[Source "ChessBase"]
[SourceQuality "1"]
[TimeControl "40/5400+30:1800+30"]

1. e4 {[%emt 0:00:44]} c5 {[%emt 0:00:00]} 2. Nf3 {[%emt 0:00:04]} d6 {[%emt 0:00:00]} 3. d4 {[%emt 0:00:04]} cxd4 {[%emt 0:00:00]} 4. Nxd4 {[%emt 0:00:03]} Nf6 {[%emt 0:00:00]} 5. Nc3 {[%emt 0:00:04]} g6 {[%emt 0:00:06]} 6. Be3 {[%emt 0:00:05]} Bg7 {[%emt 0:00:05]} 7. f3 {[%emt 0:00:05]} O-O {[%emt 0:00:11]} 8. Qd2 {[%emt 0:00:03]} Nc6 {[%emt 0:00:08]} 9. O-O-O {[%emt 0:00:34]} Nxd4 {[%emt 0:00:19]} 10. Bxd4 {[%emt 0:00:05]} Be6 {[%emt 0:00:09]} 11. Kb1 {[%emt 0:00:35]} Qc7 {[%emt 0:00:11]} 12. h4 {[%emt 0:00:11]} Rfc8 {[%emt 0:00:31]} 13. h5 {[%emt 0:00:09]} Qa5 {[%emt 0:03:53]} 14. hxg6 {[%emt 0:00:33]} fxg6 {[%emt 0:15:18]} 15. a3 {[%emt 0:00:37]} Rab8 {[%emt 0:01:34]} 16. Bd3 {[%emt 0:00:24]} Bf7 {[%emt 0:18:35]} 17. Qe3 {[%emt 0:00:48]} b5 {[%emt 0:07:28]} 18. Nd5 $16 {[%emt 0:01:10]} (18. Bxa7 b4 $17) 18... Rb7 {[%emt 0:10:52]} 19. Qg5 {[%emt 0:45:20]} Qd8 {[%emt 0:17:06]} 20. Qh4 {[%emt 0:00:50]} e5 {[%emt 0:08:20]} 21. Be3 {[%emt 0:01:36]} Bxd5 {[%emt 0:04:09]} 22. exd5 {[%emt 0:00:11]} a6 {[%emt 0:02:49]} 23. Bg5 {[%emt 0:04:51]} Rf7 {[%emt 0:00:45]} 24. g4 {[%emt 0:01:30]} Rb8 {[%emt 0:02:42]} 25. Bxf6 {[%emt 0:00:37]} Bxf6 {[%emt 0:00:05]} 26. g5 {[%emt 0:00:03]} Bxg5 {[%emt 0:00:36]} 27. Qg4 {[%emt 0:00:37]} Rg7 {[%emt 0:01:45]} 28. Qe6+ {[%emt 0:08:00]} Kf8 {[%emt 0:01:50]} 29. Rdg1 {[%emt 0:01:48]} h6 {[%emt 0:04:32]} 30. Rxg5 {[%emt 0:00:27]} Qxg5 {[%emt 0:00:15]} 31. Qxd6+ {[%emt 0:00:03]} Kf7 {[%emt 0:00:37]} 32. Qxb8 {[%emt 0:00:07]} h5 {[%emt 0:00:24]} 33. Qb6 {[%emt 0:01:19]} Qg2 {[%emt 0:00:34]} 34. Rg1 {[%emt 0:00:10]} Qd2 {[%emt 0:00:14]} 35. Bxg6+ {[%emt 0:00:20]} Kf8 {[%emt 0:00:12]} 36. Qf6+ {[%emt 0:00:04]} Rf7 {[%emt 0:00:06]} 37. Qxf7# {[%emt 0:00:03] Ke8 Qf8+ Kxf8} 1-0

[Event "WYCC 2018 G14"]
[Site "Halkidiki"]
[Date "2018.10.23"]
[Round "5"]
[White "Galvan Cipriani, Viviana"]
[Black "Mrudul Dehankar"]
[Result "0-1"]
[ECO "A01"]
[WhiteElo "2109"]
[BlackElo "1996"]
[Annotator "NA"]
[PlyCount "120"]
[EventDate "2018.10.20"]
[EventType "swiss"]
[EventCountry "GRE"]
[SourceTitle "playchess.com"]
[Source "ChessBase"]
[SourceQuality "1"]
[TimeControl "40/5400+30:1800+30"]

1. b3 {[%emt 0:00:45]} Nf6 {[%emt 0:00:00]} 2. Bb2 {[%emt 0:00:04]} g6 {[%emt 0:00:21]} 3. Bxf6 {[%emt 0:00:22]} exf6 {[%emt 0:00:06]} 4. c4 {[%emt 0:00:04]} Bg7 {[%emt 0:00:41]} 5. Nc3 {[%emt 0:00:06]} f5 {[%emt 0:00:28]} 6. g3 {[%emt 0:00:51]} d6 {[%emt 0:01:56]} 7. Bg2 {[%emt 0:00:15]} Nd7 {[%emt 0:01:53]} 8. e3 {[%emt 0:01:10]} Nf6 {[%emt 0:02:24]} 9. Nge2 {[%emt 0:01:30]} c6 {[%emt 0:05:24]} 10. d4 {[%emt 0:01:28]} O-O {[%emt 0:03:12]} 11. O-O {[%emt 0:01:22]} Re8 {[%emt 0:01:10]} 12. Qd3 $11 {[%emt 0:02:51]} Qe7 {[%emt 0:01:41]} 13. b4 {[%emt 0:02:21]} h5 {[%emt 0:01:46]} 14. h4 {[%emt 0:00:58]} Ne4 {[%emt 0:07:22]} 15. a4 {[%emt 0:03:22]} Bf6 {[%emt 0:06:13]} 16. Nf4 {[%emt 0:04:16]} Kg7 {[%emt 0:10:45]} 17. Nce2 {[%emt 0:04:50]} d5 {[%emt 0:20:01]} 18. c5 {[%emt 0:07:04]} Kh6 {[%emt 0:08:06]} 19. f3 {[%emt 0:29:46]} Nxg3 {[%emt 0:05:43]} 20. Nxg3 {[%emt 0:00:59]} Qxe3+ {[%emt 0:07:12]} 21. Qxe3 {[%emt 0:01:19]} Rxe3 {[%emt 0:00:02]} 22. Rfd1 {[%emt 0:03:03]} Bxh4 {[%emt 0:02:46]} 23. Nf1 {[%emt 0:00:44]} Re7 {[%emt 0:00:47]} 24. b5 {[%emt 0:09:33]} Bf6 {[%emt 0:04:10]} 25. Nh3 {[%emt 0:05:35]} g5 {[%emt 0:02:28]} 26. f4 {[%emt 0:02:08]} g4 {[%emt 0:00:21]} 27. Nf2 {[%emt 0:00:04]} Bd7 {[%emt 0:01:56]} 28. Rab1 {[%emt 0:00:28]} Rae8 {[%emt 0:01:40]} 29. Rb4 {[%emt 0:03:31]} h4 {[%emt 0:02:24]} 30. Rb3 {[%emt 0:04:59]} Re2 {[%emt 0:00:34]} 31. Rb4 {[%emt 0:02:28]} Ra2 {[%emt 0:00:57]} 32. Rd2 {[%emt 0:00:07]} Ra1 {[%emt 0:00:38]} 33. Rd1 {[%emt 0:00:03]} Rxd1 {[%emt 0:00:26]} 34. Nxd1 {[%emt 0:00:02]} h3 {[%emt 0:00:11]} 35. Bh1 {[%emt 0:02:53]} Re2 {[%emt 0:00:08]} 36. Nf2 {[%emt 0:02:20]} Bh4 {[%emt 0:00:48]} 37. Nd3 {[%emt 0:00:34]} g3 {[%emt 0:00:34]} 38. Bf3 {[%emt 0:01:28]} Ra2 {[%emt 0:00:35]} 39. Rb2 {[%emt 0:02:00]} Ra1 {[%emt 0:00:41]} 40. Be2 {[%emt 0:00:00]} g2 {[%emt 0:00:00]} 41. Ne5 {[%emt 0:05:21]} Bg3 {[%emt 0:08:11]} 42. Nxd7 {[%emt 0:03:07]} gxf1=Q+ {[%emt 0:00:21]} 43. Bxf1 {[%emt 0:00:19]} h2+ {[%emt 0:00:07]} 44. Rxh2+ {[%emt 0:02:01]} Bxh2+ {[%emt 0:00:05]} 45. Kxh2 {[%emt 0:00:04]} Rxf1 {[%emt 0:00:06]} 46. bxc6 {[%emt 0:00:12]} bxc6 {[%emt 0:00:03]} 47. Nb8 {[%emt 0:00:43]} Ra1 {[%emt 0:03:00]} 48. Nxc6 {[%emt 0:01:01]} Rxa4 {[%emt 0:00:08]} 49. Kg3 {[%emt 0:08:30]} a5 {[%emt 0:06:25]} 50. Kf3 {[%emt 0:00:59]} Rc4 {[%emt 0:05:11]} 51. Nxa5 {[%emt 0:03:56]} Rxd4 {[%emt 0:00:10]} 52. Nb7 {[%emt 0:11:07]} Rc4 {[%emt 0:00:39]} 53. Nd6 {[%emt 0:00:24]} Rc3+ {[%emt 0:00:09]} 54. Ke2 {[%emt 0:00:10]} Kg6 {[%emt 0:01:04]} 55. Nb7 {[%emt 0:00:28]} Kh5 {[%emt 0:00:21]} 56. Nd6 {[%emt 0:00:47]} Kg4 {[%emt 0:00:23]} 57. Nxf7 {[%emt 0:00:53]} Kxf4 {[%emt 0:00:22]} 58. Nd8 {[%emt 0:00:25]} Ke4 {[%emt 0:00:44]} 59. c6 {[%emt 0:00:18]} f4 {[%emt 0:00:19]} 60. Kd2 {[%emt 0:00:54]} d4 {[%emt 0:00:07]} 0-1

[Event "WYCC 2018 G14"]
[Site "Halkidiki"]
[Date "2018.10.23"]
[Round "5"]
[White "Krasteva, Beloslava"]
[Black "Obada, Ema"]
[Result "1/2-1/2"]
[ECO "E48"]
[WhiteElo "2089"]
[BlackElo "1811"]
[Annotator "NA"]
[PlyCount "65"]
[EventDate "2018.10.20"]
[EventType "swiss"]
[EventCountry "GRE"]
[SourceTitle "playchess.com"]
[Source "ChessBase"]
[SourceQuality "1"]
[TimeControl "40/5400+30:1800+30"]

1. d4 {[%emt 0:00:00]} Nf6 {[%emt 0:00:00]} 2. c4 {[%emt 0:00:00]} e6 {[%emt 0:00:00]} 3. Nc3 {[%emt 0:00:15]} Bb4 {[%emt 0:00:00]} 4. e3 {[%emt 0:00:16]} O-O {[%emt 0:00:13]} 5. Bd3 {[%emt 0:00:19]} d5 {[%emt 0:00:18]} 6. cxd5 {[%emt 0:00:40]} exd5 {[%emt 0:00:12]} 7. Nge2 {[%emt 0:01:02]} Re8 {[%emt 0:00:19]} 8. O-O {[%emt 0:00:51]} Bd6 {[%emt 0:01:13]} 9. Bd2 {[%emt 0:07:14]} Nbd7 {[%emt 0:25:54]} 10. Rc1 {[%emt 0:06:27]} a6 {[%emt 0:00:49]} 11. f3 {[%emt 0:13:07]} c5 {[%emt 0:03:42]} 12. Bb1 {[%emt 0:07:43]} Nf8 {[%emt 0:10:50]} 13. dxc5 {[%emt 0:05:00]} Bxc5 {[%emt 0:00:40]} 14. Nd4 {[%emt 0:00:53]} Bd7 {[%emt 0:15:51]} 15. Qb3 {[%emt 0:10:07]} Bxd4 {[%emt 0:05:49]} 16. exd4 {[%emt 0:00:10]} Ne6 {[%emt 0:00:35]} 17. Be3 {[%emt 0:05:46]} Bc6 {[%emt 0:04:43]} 18. Rfe1 {[%emt 0:01:36]} Qd6 {[%emt 0:03:50]} 19. Ne2 {[%emt 0:03:01]} Bd7 {[%emt 0:04:35]} 20. Qd3 {[%emt 0:03:39]} Bb5 {[%emt 0:02:21]} 21. Qd2 {[%emt 0:00:21]} Bxe2 {[%emt 0:03:46]} 22. Rxe2 {[%emt 0:00:28]} Rac8 {[%emt 0:00:07]} 23. Ree1 {[%emt 0:02:21]} Qb6 {[%emt 0:01:32]} 24. Bf5 {[%emt 0:04:37]} Rc6 {[%emt 0:02:44]} 25. Rxc6 {[%emt 0:02:50]} Qxc6 {[%emt 0:00:20]} 26. Rc1 {[%emt 0:00:19]} Qb6 {[%emt 0:00:45]} 27. a4 {[%emt 0:02:28]} Qd6 {[%emt 0:01:28]} 28. b4 {[%emt 0:02:34]} Qd7 {[%emt 0:01:18]} 29. Qc2 {[%emt 0:03:47]} Qd6 {[%emt 0:02:00]} 30. Qd2 {[%emt 0:01:22]} Qd7 {[%emt 0:00:07]} 31. Bc2 {[%emt 0:01:28]} g6 {[%emt 0:02:10]} 32. Bb3 {[%emt 0:00:54]} Qd6 {[%emt 0:01:04]} 33. g3 {[%emt 0:06:40]} 1/2-1/2

[Event "WYCC 2018 G14"]
[Site "Halkidiki"]
[Date "2018.10.23"]
[Round "5"]
[White "Jyothsna L"]
[Black "Garifullina, Leya"]
[Result "1/2-1/2"]
[ECO "D05"]
[WhiteElo "2060"]
[BlackElo "2106"]
[Annotator "NA"]
[PlyCount "96"]
[EventDate "2018.10.20"]
[EventType "swiss"]
[EventCountry "GRE"]
[SourceTitle "playchess.com"]
[Source "ChessBase"]
[SourceQuality "1"]
[TimeControl "40/5400+30:1800+30"]

1. d4 {[%emt 0:01:35]} Nf6 {[%emt 0:00:01]} 2. Nf3 {[%emt 0:00:14]} e6 {[%emt 0:00:15]} 3. e3 {[%emt 0:00:20]} c5 {[%emt 0:00:39]} 4. Bd3 {[%emt 0:00:39]} d5 {[%emt 0:00:05]} 5. b3 {[%emt 0:00:38]} Be7 {[%emt 0:00:28]} 6. O-O {[%emt 0:00:39]} O-O {[%emt 0:00:30]} 7. Bb2 {[%emt 0:00:48]} b6 {[%emt 0:00:05]} 8. Ne5 {[%emt 0:02:38]} Bb7 {[%emt 0:00:29]} 9. Qe2 {[%emt 0:05:01]} Nbd7 {[%emt 0:01:39]} 10. Rd1 {[%emt 0:08:07]} Qc7 {[%emt 0:01:44]} 11. Nd2 {[%emt 0:09:14]} cxd4 {[%emt 0:02:51]} 12. Nxd7 {[%emt 0:14:19]} Nxd7 {[%emt 0:00:40]} 13. exd4 $11 {[%emt 0:00:53]} Rac8 {[%emt 0:04:10]} 14. Rac1 {[%emt 0:04:02]} Bd6 {[%emt 0:00:35]} 15. g3 {[%emt 0:02:45]} Qd8 {[%emt 0:07:02]} 16. Ba6 {[%emt 0:10:30]} Bxa6 {[%emt 0:07:33]} 17. Qxa6 {[%emt 0:00:03]} Rc7 {[%emt 0:02:08]} 18. c4 {[%emt 0:07:04]} Nf6 {[%emt 0:03:16]} 19. c5 {[%emt 0:04:16]} bxc5 {[%emt 0:07:13]} 20. Ba3 {[%emt 0:01:02]} Qe7 {[%emt 0:04:29]} 21. Rc2 {[%emt 0:11:01]} Rfc8 {[%emt 0:02:18]} 22. Rdc1 {[%emt 0:01:37]} h6 {[%emt 0:02:32]} 23. Qa5 {[%emt 0:03:58]} c4 {[%emt 0:03:52]} 24. Bxd6 {[%emt 0:01:42]} Qxd6 {[%emt 0:00:07]} 25. bxc4 {[%emt 0:04:59]} dxc4 {[%emt 0:00:13]} 26. Rxc4 {[%emt 0:01:09]} Rxc4 {[%emt 0:00:20]} 27. Rxc4 {[%emt 0:00:39]} Rxc4 {[%emt 0:00:10]} 28. Nxc4 {[%emt 0:00:05]} Qxd4 {[%emt 0:00:35]} 29. Ne3 {[%emt 0:01:28]} g6 {[%emt 0:04:35]} 30. a3 {[%emt 0:01:09]} Kg7 {[%emt 0:01:20]} 31. Qa6 {[%emt 0:00:49]} Ne4 {[%emt 0:01:32]} 32. Qc4 {[%emt 0:00:46]} Qxc4 {[%emt 0:02:27]} 33. Nxc4 {[%emt 0:00:02]} Kf6 {[%emt 0:01:32]} 34. f3 {[%emt 0:00:56]} Nc5 {[%emt 0:00:22]} 35. f4 {[%emt 0:00:49]} Nd7 {[%emt 0:02:57]} 36. Kf2 {[%emt 0:01:17]} e5 {[%emt 0:00:44]} 37. Ke3 {[%emt 0:00:36]} Ke6 {[%emt 0:00:52]} 38. g4 {[%emt 0:00:02]} Kd5 {[%emt 0:00:23]} 39. Nd2 {[%emt 0:00:12]} exf4+ {[%emt 0:01:26]} 40. Kxf4 {[%emt 0:00:00]} Kd4 {[%emt 0:00:00]} 41. Ne4 {[%emt 0:00:53]} Ne5 {[%emt 0:12:34]} 42. Nd6 {[%emt 0:00:46]} Kd5 {[%emt 0:00:58]} 43. Nb5 {[%emt 0:01:15]} Nc6 {[%emt 0:00:43]} 44. h4 {[%emt 0:01:04]} a5 {[%emt 0:00:53]} 45. a4 {[%emt 0:00:18]} Nb4 {[%emt 0:07:07]} 46. h5 {[%emt 0:01:15]} Nd3+ {[%emt 0:00:49]} 47. Ke3 {[%emt 0:00:11]} Nc5 {[%emt 0:00:07]} 48. g5 {[%emt 0:00:44]} Ke5 {Ke4+} 1/2-1/2

[Event "WYCC 2018 G14"]
[Site "Halkidiki"]
[Date "2018.10.23"]
[Round "5"]
[White "Mironenko, Galina"]
[Black "De Rycke, Tyani"]
[Result "1/2-1/2"]
[ECO "D02"]
[WhiteElo "2053"]
[BlackElo "1758"]
[Annotator "NA"]
[PlyCount "92"]
[EventDate "2018.10.20"]
[EventType "swiss"]
[EventCountry "GRE"]
[SourceTitle "playchess.com"]
[Source "ChessBase"]
[SourceQuality "1"]
[TimeControl "40/5400+30:1800+30"]

1. d4 {[%emt 0:00:00]} d5 {[%emt 0:00:00]} 2. Nf3 {[%emt 0:00:00]} Nf6 {[%emt 0:00:00]} 3. c4 {[%emt 0:00:00]} e6 {[%emt 0:00:00]} 4. e3 {[%emt 0:00:48]} Be7 {[%emt 0:00:17]} 5. Bd3 {[%emt 0:01:33]} O-O {[%emt 0:00:18]} 6. O-O {[%emt 0:00:35]} b6 {[%emt 0:00:17]} 7. b3 {[%emt 0:02:00]} Bb7 {[%emt 0:00:23]} 8. Bb2 {[%emt 0:01:00]} Nbd7 {[%emt 0:00:41]} 9. Nbd2 {[%emt 0:00:59]} Ne4 {[%emt 0:03:00]} 10. Qc2 {[%emt 0:03:06]} Ndf6 {[%emt 0:06:16]} 11. Ne5 {[%emt 0:05:48]} Nxd2 {[%emt 0:01:22]} 12. Qxd2 {[%emt 0:00:18]} Ne4 {[%emt 0:00:10]} 13. Qc2 {[%emt 0:02:16]} f6 {[%emt 0:00:22]} 14. cxd5 {[%emt 0:06:56]} exd5 {[%emt 0:12:22]} 15. Nc6 {[%emt 0:03:18]} Qd6 {[%emt 0:06:19]} 16. Rac1 {[%emt 0:04:44]} Bxc6 {[%emt 0:05:32]} 17. Qxc6 {[%emt 0:01:01]} Qxc6 {[%emt 0:01:20]} 18. Rxc6 {[%emt 0:00:09]} Bd6 {[%emt 0:00:40]} 19. h4 {[%emt 0:09:15]} Rae8 {[%emt 0:05:18]} 20. f3 {[%emt 0:05:40]} Ng3 {[%emt 0:00:20]} 21. Re1 {[%emt 0:00:06]} f5 {[%emt 0:02:41]} 22. Kf2 {[%emt 0:05:27]} Nh5 {[%emt 0:07:09]} 23. f4 {[%emt 0:05:35]} g6 {[%emt 0:01:25]} 24. Be2 {[%emt 0:04:29]} Nf6 {[%emt 0:02:28]} 25. Bf3 {[%emt 0:01:16]} Re7 {[%emt 0:01:27]} 26. Bc1 {[%emt 0:01:35]} Rfe8 {[%emt 0:00:40]} 27. Bd2 {[%emt 0:00:49]} Kf7 {[%emt 0:00:27]} 28. b4 {[%emt 0:01:48]} a6 {[%emt 0:04:02]} 29. Rb1 {[%emt 0:04:01]} Ne4+ {[%emt 0:02:31]} 30. Bxe4 {[%emt 0:02:16]} Rxe4 {[%emt 0:01:18]} 31. g3 {[%emt 0:00:49]} Ra8 {[%emt 0:01:19]} 32. a4 {[%emt 0:02:22]} Ke7 {[%emt 0:05:06]} 33. h5 {[%emt 0:05:33]} Kd7 {[%emt 0:01:48]} 34. Rc2 {[%emt 0:01:36]} g5 {[%emt 0:02:41]} 35. Rh1 {[%emt 0:04:19]} g4 {[%emt 0:01:24]} 36. Ke2 {[%emt 0:03:04]} h6 {[%emt 0:00:38]} 37. Rhc1 {[%emt 0:02:12]} Ree8 {[%emt 0:00:48]} 38. Kd3 {[%emt 0:01:05]} Reb8 {[%emt 0:00:51]} 39. Ra2 {[%emt 0:01:20]} Rb7 {[%emt 0:00:46]} 40. Rb1 {[%emt 0:00:00]} Rbb8 {[%emt 0:00:00]} 41. b5 {[%emt 0:02:32]} a5 {[%emt 0:01:15]} 42. Bc1 {[%emt 0:00:58]} Rc8 {[%emt 0:03:28]} 43. Ba3 {[%emt 0:00:41]} c6 {[%emt 0:02:07]} 44. Bxd6 {[%emt 0:02:22]} Kxd6 {[%emt 0:00:05]} 45. bxc6 {[%emt 0:00:35]} Rxc6 {[%emt 0:00:05]} 46. Rab2 {[%emt 0:00:06]} Ra6 {Ke4 Ke5+} 1/2-1/2

[Event "WYCC 2018 G14"]
[Site "Halkidiki"]
[Date "2018.10.23"]
[Round "5"]
[White "Wikar, Martyna"]
[Black "Kuhar, Larisa"]
[Result "1/2-1/2"]
[ECO "A45"]
[WhiteElo "2024"]
[BlackElo "1916"]
[Annotator "NA"]
[PlyCount "63"]
[EventDate "2018.10.20"]
[EventType "swiss"]
[EventCountry "GRE"]
[SourceTitle "playchess.com"]
[Source "ChessBase"]
[SourceQuality "1"]
[TimeControl "40/5400+30:1800+30"]

1. d4 {[%emt 0:00:00]} Nf6 {[%emt 0:00:00]} 2. Nc3 {[%emt 0:00:00]} d5 {[%emt 0:01:06]} 3. Bf4 {[%emt 0:00:12]} Bf5 {[%emt 0:04:45]} 4. e3 {[%emt 0:05:17]} a6 $11 {[%emt 0:06:40] LiveBook: 17 Games} 5. Nf3 {[%emt 0:02:33]} e6 {[%emt 0:03:18]} 6. Bd3 {[%emt 0:02:19]} Bxd3 {[%emt 0:05:21]} 7. Qxd3 {[%emt 0:00:46]} c5 {[%emt 0:00:21]} 8. O-O {[%emt 0:02:40]} Nc6 {[%emt 0:01:18]} 9. a3 {[%emt 0:02:14]} c4 {[%emt 0:08:15]} 10. Qd2 {[%emt 0:03:28]} b5 {[%emt 0:00:42]} 11. Ne5 {[%emt 0:04:41]} Qb6 {[%emt 0:07:01]} 12. f3 {[%emt 0:07:44]} Nh5 {[%emt 0:05:40]} 13. Nxc6 {[%emt 0:03:00]} Qxc6 {[%emt 0:01:46]} 14. Bg5 {[%emt 0:05:35]} h6 {[%emt 0:03:30]} 15. Bh4 {[%emt 0:00:26]} Bd6 {[%emt 0:01:37]} 16. Kh1 {[%emt 0:03:36]} Qc7 {[%emt 0:03:35]} 17. g4 {[%emt 0:08:27]} Nf6 {[%emt 0:01:52]} 18. Bxf6 {[%emt 0:04:48]} gxf6 {[%emt 0:00:09]} 19. f4 {[%emt 0:03:08]} h5 {[%emt 0:04:33]} 20. g5 {[%emt 0:01:51]} fxg5 {[%emt 0:06:02]} 21. fxg5 {[%emt 0:00:57]} O-O-O {[%emt 0:00:58]} 22. e4 {[%emt 0:05:00]} dxe4 {[%emt 0:10:13]} 23. Nxe4 {[%emt 0:00:08]} h4 {[%emt 0:04:12]} 24. Qg2 {[%emt 0:01:47]} Kb8 {[%emt 0:01:46]} 25. h3 {[%emt 0:04:15]} Qb7 {[%emt 0:03:34]} 26. c3 {[%emt 0:00:53]} Rhg8 {[%emt 0:00:42]} 27. Rae1 {[%emt 0:02:55]} f5 {[%emt 0:00:30]} 28. Nxd6 {[%emt 0:05:58]} Qxg2+ {[%emt 0:00:17]} 29. Kxg2 {[%emt 0:00:04]} Rxg5+ {[%emt 0:00:31]} 30. Kh2 {[%emt 0:01:36]} Rxd6 {[%emt 0:00:13]} 31. Rf4 {[%emt 0:00:53]} Rh5 {[%emt 0:02:19]} 32. Re5 {[%emt 0:01:32]} 1/2-1/2